bitfinex/quotes_SOLUSD_20250315
["timestamp","ask_amount","ask_price","bid_price","bid_amount"]
[1742001440375,0.0001,133.82,133.8,94.6829996]
[1742001440576,20.84289986,133.82,133.8,94.6829996]
[1742001441166,20.84289986,133.82,133.8,87.2092996]
[1742001441366,20.84289986,133.82,133.8,94.6830996]
[1742001441565,0.0001,133.82,133.8,94.6830996]
[1742001441768,20.84289986,133.82,133.8,94.6830996]
[1742001442778,0.0001,133.82,133.8,94.6830996]
[1742001443977,0.0001,133.82,133.81,18.64964886]
[1742001445069,0.0001,133.82,133.81,26.12284886]
[1742001447161,0.0001,133.82,133.81,26.407172]
[1742001447377,0.0001,133.82,133.81,107.0764716]
[1742001448760,0.0001,133.82,133.81,88.1424996]
[1742001449555,0.0001,133.82,133.81,94.6824996]
[1742001450377,13.34123193,133.82,133.8,80.6992996]
[1742001450569,13.34113193,133.81,133.8,87.2392996]
[1742001450880,13.34113193,133.81,133.8,80.6992996]
[1742001452573,0.0001,133.82,133.8,88.1730996]
[1742001452574,13.34123193,133.82,133.8,88.1730996]
[1742001452885,0.0001,133.82,133.8,88.1730996]
[1742001454896,0.0001,133.82,133.81,18.933972]
[1742001455388,0.0001,133.82,133.8,7.5038]
[1742001455774,0.0001,133.82,133.81,18.64964886]
[1742001456284,0.0001,133.82,133.81,7.4732]
[1742001456484,0.0001,133.82,133.81,107.107172]
[1742001458282,0.0001,133.82,133.81,106.82284886]
[1742001460484,0.0001,133.82,133.81,88.1732]
[1742001463485,0.0001,133.82,133.8,0.03]
[1742001463486,20.83785466,133.82,133.8,0.03]
[1742001463672,20.83775466,133.81,133.8,0.03]
[1742001466885,28.31095466,133.81,133.8,0.03]
[1742001467085,29.90165466,133.81,133.8,0.03]
[1742001468073,22.42845466,133.81,133.8,0.03]
[1742001469887,29.90165466,133.81,133.8,0.03]
[1742001470196,22.42845466,133.81,133.8,0.03]
[1742001470875,0.0001,133.82,133.8,0.03]
[1742001472482,0.0001,133.82,133.81,6.54]
[1742001473996,0.0001,133.82,133.81,14.0132]
[1742001477401,0.0001,133.82,133.81,94.7132]
[1742001477706,13.33759386,133.82,133.81,80.7]
[1742001478004,0.0001,133.82,133.81,88.1732]
[1742001479887,0.0001,133.82,133.81,80.7]
[1742001480090,13.33759386,133.82,133.81,80.7]
[1742001483178,13.33759386,133.82,133.8,0.03]
[1742001483390,13.33749386,133.81,133.8,0.03]
[1742001483988,13.33759386,133.82,133.8,7.5038]
[1742001485009,0.0001,133.82,133.8,7.5038]
[1742001487101,0.0001,133.82,133.81,26.12284886]
[1742001490014,0.0001,133.82,133.81,26.26501043]
[1742001492007,0.0001,133.82,133.81,106.96501043]
[1742001493187,0.0001,133.82,133.81,106.82284886]
[1742001493404,0.0001,133.82,133.81,106.85284886]
[1742001493592,0.0001,133.82,133.81,106.99501043]
[1742001494292,0.0001,133.82,133.81,107.137172]
[1742001494910,0.0001,133.85,133.84,38.79181043]
[1742001495102,0.0001,133.85,133.84,126.01181043]
[1742001495488,0.0001,133.85,133.84,133.48341043]
[1742001496307,0.0001,133.86,133.85,18.79181043]
[1742001496507,0.0001,133.86,133.85,99.49181043]
[1742001497308,0.0001,133.87,133.85,99.633972]
[1742001497503,0.0001,133.87,133.86,26.26221043]
[1742001498104,0.0001,133.87,133.86,26.904372]
[1742001499408,0.0001,133.87,133.86,28.0242889]
[1742001500019,0.0001,133.87,133.86,26.404372]
[1742001500510,0.0001,133.87,133.86,107.104372]
[1742001500896,0.0001,133.87,133.86,110.80320123]
[1742001501617,0.0001,133.87,133.86,112.42314146]
[1742001502013,0.063,133.91,133.9,18.933972]
[1742001502214,0.063,133.91,133.9,106.153972]
[1742001503918,0.063,133.91,133.9,113.622172]
[1742001504719,0.0001,133.96,133.95,18.933972]
[1742001505022,0.0001,133.96,133.95,106.153972]
[1742001505905,0.0001,133.96,133.95,113.619372]
[1742001508115,27.31496686,134.05,134.01,20.0]
[1742001508420,28.94686686,134.05,134.02,6.52]
[1742001508727,20.80036686,134.04,134.02,6.52]
[1742001510325,28.94686686,134.05,134.03,7.461]
[1742001515115,20.80036686,134.04,133.97,80.6999]
[1742001515319,20.80036686,134.01,133.98,6.52]
[1742001516329,20.80036686,133.99,133.97,80.6999]
[1742001516630,1.77836157,134.04,133.97,80.6999]
[1742001516823,20.80036686,133.99,133.96,94.6844]
[1742001517026,20.80036686,134.0,133.96,94.6844]
[1742001518133,20.80036686,134.0,133.96,94.7474]
[1742001518515,20.80036686,133.99,133.96,94.7474]
[1742001519625,20.80036686,134.0,133.96,94.7474]
[1742001519819,1.6362,134.04,133.96,113.4096]
[1742001520017,20.80036686,134.02,133.96,113.4096]
[1742001521541,20.80036686,134.01,133.96,113.4096]
[1742001522134,20.80036686,134.02,133.96,113.4096]
[1742001522939,20.80036686,134.02,133.98,26.1233]
[1742001523126,20.80036686,134.02,133.98,7.4638]
[1742001523328,20.80036686,134.01,133.98,7.4638]
[1742001524338,20.80036686,134.01,133.97,7.4643]
[1742001524543,20.80036686,134.0,133.97,7.4643]
[1742001525341,20.80036686,133.99,133.96,94.7475]
[1742001526340,20.80036686,134.0,133.96,94.7475]
[1742001528153,20.80036686,134.01,133.96,94.7475]
[1742001528644,20.80036686,134.0,133.96,94.7475]
[1742001529632,22.42606686,133.97,133.96,0.063]
[1742001530118,0.14216157,134.02,133.96,0.063]
[1742001530325,13.31016453,133.98,133.96,0.063]
[1742001532934,7.4928,134.0,133.96,0.063]
[1742001532935,13.31016453,133.99,133.96,0.063]
[1742001533331,13.34016453,134.0,133.96,7.5279]
[1742001533939,13.31016453,133.99,133.96,7.5279]
[1742001534349,20.79355133,133.99,133.96,7.5279]
[1742001534951,20.79355133,133.98,133.96,0.063]
[1742001535750,0.03,134.0,133.96,0.063]
[1742001536253,0.03,134.0,133.99,20.0]
[1742001536440,0.03,134.0,133.99,119.34954886]
[1742001536640,0.03,134.0,133.99,100.6999]
[1742001536847,0.03,134.0,133.99,107.2799]
[1742001537534,0.03,134.0,133.99,34.0432]
[1742001538232,0.0001,134.0,133.99,52.977172]
[1742001538537,0.0001,134.0,133.99,133.39274886]
[1742001538844,0.0001,134.0,133.99,114.7431]
[1742001540030,0.0001,134.0,133.99,34.0432]
[1742001543456,0.0001,134.0,133.99,14.0232]
[1742001545561,0.0001,134.0,133.99,34.0232]
[1742001547581,0.0001,134.0,133.99,14.0232]
[1742001548280,20.79365133,134.0,133.99,6.56]
[1742001548643,20.79365133,134.0,133.96,7.5276]
[1742001548845,0.0001,134.0,133.96,14.1076]
[1742001549057,20.79355133,133.99,133.96,14.1076]
[1742001549256,20.79355133,133.98,133.96,14.1076]
[1742001549443,20.79355133,133.97,133.96,0.063]
[1742001550460,20.79355133,133.98,133.96,0.063]
[1742001550757,20.79355133,133.97,133.96,0.063]
[1742001551163,20.79355133,133.97,133.96,7.5279]
[1742001551871,20.79355133,133.98,133.96,7.5279]
[1742001552169,20.79355133,133.97,133.96,0.063]
[1742001552775,20.79355133,133.98,133.96,0.063]
[1742001554048,20.79355133,133.97,133.96,0.063]
[1742001556364,13.31156433,133.97,133.96,0.063]
[1742001557538,20.77586433,133.97,133.96,0.063]
[1742001557745,28.8197259,133.97,133.96,0.063]
[1742001558351,36.3197308,133.97,133.96,0.063]
[1742001559061,55.11154123,133.97,133.96,0.063]
[1742001559381,20.81156923,133.91,133.88,94.7292]
[1742001559663,20.81156923,133.91,133.88,6.56]
[1742001560561,20.81156923,133.91,133.88,14.0293]
[1742001561866,20.81156923,133.94,133.88,14.0293]
[1742001562045,20.81156923,133.94,133.88,94.7292]
[1742001562841,20.81156923,133.94,133.88,113.4026]
[1742001565348,20.81156923,133.96,133.89,18.79181043]
[1742001566167,20.81156923,133.95,133.89,18.79181043]
[1742001567072,20.81156923,133.95,133.9,7.4682]
[1742001567654,20.81156923,133.93,133.9,7.4682]
[1742001569175,20.81156923,133.93,133.89,7.4688]
[1742001569365,20.81156923,133.94,133.89,7.4688]
[1742001569957,20.81156923,133.96,133.9,18.64964886]
[1742001570651,20.81156923,133.95,133.89,26.1408]
[1742001571072,20.81156923,133.95,133.89,106.8407]
[1742001572778,20.81156923,133.94,133.89,106.8407]
[1742001573373,20.81156923,133.95,133.89,106.8407]
[1742001573562,1.6325,133.97,133.92,20.0]
[1742001573768,20.81156923,133.96,133.92,20.0]
[1742001573965,20.81156923,133.95,133.92,20.0]
[1742001575063,20.81156923,133.95,133.93,7.4665]
[1742001576278,20.81156923,133.94,133.93,7.4665]
[1742001576779,20.81156923,133.95,133.93,7.4665]
[1742001580283,13.31611248,133.95,133.93,7.4665]
[1742001582064,13.31611248,133.94,133.93,7.4665]
[1742001582662,13.31611248,133.94,133.92,27.4668]
[1742001582867,13.31611248,133.94,133.92,7.4668]
[1742001583985,13.31611248,133.94,133.91,18.6691]
[1742001584185,13.31611248,133.94,133.9,7.4682]
[1742001584486,13.31611248,133.94,133.9,88.1681]
[1742001584965,13.31611248,133.93,133.9,88.1681]
[1742001585572,13.31611248,133.92,133.9,94.6881]
[1742001585810,1.6325,133.97,133.9,94.6881]
[1742001585811,13.31611248,133.93,133.9,94.6881]
[1742001585989,13.31611248,133.94,133.9,13.9882]
[1742001588162,13.31611248,133.93,133.9,13.9882]
[1742001588567,13.31611248,133.92,133.9,13.9882]
[1742001588973,13.31611248,133.92,133.9,7.4682]
[1742001589966,13.31611248,133.92,133.89,13.9885]
[1742001590687,13.31611248,133.93,133.89,13.9885]
[1742001593899,13.31611248,133.93,133.88,99.4352]
[1742001593900,13.31611248,133.9,133.88,0.063]
[1742001595095,13.31611248,133.91,133.88,0.063]
[1742001595796,13.31611248,133.91,133.88,7.5323]
[1742001595974,13.31611248,133.9,133.88,7.5323]
[1742001596599,13.31611248,133.9,133.88,0.063]
[1742001598507,13.31611248,133.91,133.88,0.063]
[1742001599300,7.4668,133.93,133.88,0.063]
[1742001599301,13.31611248,133.92,133.88,0.063]
[1742001600387,6.2295,133.94,133.88,0.063]
[1742001600586,6.2295,133.94,133.88,80.7629]
[1742001600793,13.31611248,133.93,133.88,80.7629]
[1742001601193,13.31611248,133.94,133.88,80.7629]
[1742001602501,13.31611248,133.94,133.89,7.4688]
[1742001603322,13.31611248,133.94,133.89,26.1408]
[1742001603485,13.31611248,133.9,133.88,0.063]
[1742001603798,0.28432314,133.95,133.88,0.063]
[1742001603799,13.31611248,133.89,133.88,0.063]
[1742001604717,13.31611248,133.9,133.88,0.063]
[1742001606120,13.31611248,133.91,133.88,0.063]
[1742001609323,13.31611248,133.92,133.88,0.063]
[1742001610821,7.466,133.94,133.88,0.063]
[1742001611019,13.31611248,133.92,133.88,0.063]
[1742001612223,64.01198967,133.98,133.88,0.063]
[1742001612224,27.05489199,133.99,133.94,6.257]
[1742001612421,27.05489199,133.99,133.95,6.94]
[1742001612625,13.31611248,133.98,133.95,6.94]
[1742001613227,23.64288463,133.99,133.95,6.94]
[1742001614106,13.31611248,133.97,133.95,6.94]
[1742001614302,0.0001,134.0,133.95,6.94]
[1742001614303,20.79808491,133.98,133.95,6.94]
[1742001614504,20.79808491,133.97,133.95,6.94]
[1742001614705,20.79808491,133.96,133.9,6.94]
[1742001615006,20.79808491,133.94,133.9,6.94]
[1742001616629,20.79808491,133.94,133.91,7.4677]
[1742001617124,20.79808491,133.95,133.91,7.4677]
[1742001618515,20.79808491,133.94,133.91,7.4677]
[1742001620228,20.79808491,133.95,133.91,7.4677]
[1742001620429,20.79808491,133.96,133.91,7.4677]
[1742001621128,20.79808491,133.95,133.91,7.4677]
[1742001621926,20.79808491,133.93,133.9,95.108]
[1742001622724,20.79808491,133.94,133.9,95.108]
[1742001622926,20.79808491,133.93,133.9,87.6399]
[1742001623115,20.79808491,133.92,133.9,87.6399]
[1742001623528,20.79808491,133.92,133.9,80.6999]
[1742001623727,20.79808491,133.93,133.9,80.6999]
[1742001625644,20.79808491,133.94,133.9,88.1678]
[1742001625929,20.79808491,133.95,133.9,7.4679]
[1742001626112,20.79808491,133.94,133.9,7.4679]
[1742001627827,20.79808491,133.93,133.88,106.3563]
[1742001628033,20.79808491,133.93,133.89,7.4688]
[1742001628532,20.79808491,133.94,133.89,7.4688]
[1742001631940,20.79808491,133.93,133.89,7.4688]
[1742001634346,13.31907733,133.93,133.89,7.4688]
[1742001635857,13.31907733,133.94,133.89,7.4688]
[1742001636918,13.31907733,133.94,133.89,26.1408]
[1742001641437,7.4949,133.96,133.89,26.1408]
[1742001641651,13.31907733,133.94,133.89,7.4688]
[1742001641823,13.31907733,133.92,133.89,7.4688]
[1742001642032,13.31907733,133.91,133.89,7.4688]
[1742001642249,13.31907733,133.91,133.88,95.152]
[1742001642776,13.31907733,133.91,133.88,88.232]
[1742001647275,13.31907733,133.91,133.88,7.5321]
[1742001647577,13.31907733,133.91,133.88,0.063]
[1742001651156,13.31907733,133.9,133.88,0.063]
[1742001655473,7.4685,133.9,133.88,0.063]
[1742001655671,13.31907733,133.89,133.88,0.063]
[1742001662077,20.78787733,133.89,133.88,0.063]
[1742001662854,13.31907733,133.89,133.88,0.063]
[1742001663683,20.78787733,133.89,133.88,0.063]
[1742001666977,20.9300389,133.89,133.88,0.063]
[1742001667179,22.5069389,133.89,133.88,0.063]
[1742001667980,22.64910047,133.89,133.88,0.063]
[1742001668785,41.29874933,133.89,133.88,0.063]
[1742001668979,13.31907733,133.85,133.84,0.063]
[1742001675488,13.4612389,133.85,133.84,0.063]
[1742001675668,74.20854822,133.85,133.84,0.063]
[1742001676788,1.66276157,133.84,133.82,0.063]
[1742001676995,13.31907733,133.83,133.82,0.063]
[1742001679687,20.79117733,133.83,133.82,0.063]
[1742001681391,13.31907733,133.83,133.82,0.063]
[1742001683876,13.34907733,133.85,133.82,0.063]
[1742001684592,13.31907733,133.84,133.82,0.063]
[1742001684993,13.31907733,133.83,133.82,0.063]
[1742001687897,13.31907733,133.84,133.82,0.063]
[1742001689289,13.31907733,133.83,133.82,0.063]
[1742001691474,20.79117733,133.83,133.82,0.063]
[1742001693997,13.31907733,133.83,133.82,0.063]
[1742001695405,13.31907733,133.84,133.82,0.063]
[1742001696879,13.34907733,133.84,133.82,0.063]
[1742001699600,13.31907733,133.83,133.82,0.063]
[1742001700607,13.31907733,133.83,133.82,20.063]
[1742001703399,13.31907733,133.83,133.82,0.063]
[1742001706695,13.34907733,133.84,133.82,0.063]
[1742001710201,13.31907733,133.83,133.82,0.063]
[1742001720403,0.03,133.84,133.82,0.063]
[1742001720606,0.03,133.84,133.83,6.54]
[1742001721822,0.03,133.84,133.83,14.0121]
[1742001723905,13.34907733,133.84,133.83,6.54]
[1742001725417,13.34907733,133.84,133.82,0.063]
[1742001725418,20.82067733,133.84,133.82,0.063]
[1742001725616,13.31907733,133.83,133.82,0.063]
[1742001726215,13.31907733,133.83,133.82,7.5357]
[1742001727829,13.31907733,133.83,133.82,0.063]
[1742001728137,20.79117733,133.83,133.82,0.063]
[1742001728924,22.4746389,133.83,133.82,0.063]
[1742001737415,22.61680047,133.83,133.82,0.063]
[1742001737622,0.14216157,133.82,133.81,0.03]
[1742001737822,13.4612389,133.82,133.81,0.03]
[1742001738825,20.9339389,133.82,133.81,0.03]
[1742001739926,21.07610047,133.82,133.8,0.03]
[1742001740233,13.4612389,133.81,133.8,0.03]
[1742001742139,20.9344389,133.81,133.8,0.03]
[1742001743547,0.28432314,133.8,133.76,0.063]
[1742001743848,66.59538665,133.77,133.76,0.063]
[1742001744750,66.73754822,133.77,133.76,0.063]
[1742001744936,0.14216157,133.76,133.75,0.063]
[1742001745133,13.4612389,133.76,133.75,0.063]
[1742001745852,14.7402,133.79,133.75,0.063]
[1742001746036,13.31907733,133.76,133.75,0.063]
[1742001751158,20.79507733,133.76,133.75,0.063]
[1742001751859,13.31907733,133.76,133.75,0.063]
[1742001755559,20.79507733,133.76,133.75,0.063]
[1742001755865,20.82507733,133.76,133.75,0.063]
[1742001756063,13.34907733,133.76,133.75,0.063]
[1742001756462,20.82507733,133.76,133.75,0.063]
[1742001758241,13.34907733,133.76,133.75,0.063]
[1742001762873,20.82507733,133.76,133.75,0.063]
[1742001764372,13.34907733,133.76,133.75,0.063]
[1742001766475,20.82507733,133.76,133.75,0.063]
[1742001768270,21.10940047,133.76,133.75,0.063]
[1742001768470,13.4612389,133.75,133.72,0.03]
[1742001768777,13.31907733,133.73,133.72,0.03]
[1742001769658,20.79677733,133.73,133.72,0.03]
[1742001770664,0.14216157,133.72,133.7,0.063]
[1742001770954,13.31907733,133.71,133.7,0.063]
[1742001771679,20.79787733,133.71,133.7,0.063]
[1742001774771,13.31907733,133.71,133.7,0.063]
[1742001776670,20.79787733,133.71,133.7,0.063]
[1742001777464,20.9400389,133.71,133.7,0.063]
[1742001777661,74.21634822,133.71,133.7,0.063]
[1742001778786,74.35850979,133.71,133.7,0.063]
[1742001778980,93.00815865,133.71,133.7,0.063]
[1742001779486,74.35850979,133.71,133.7,0.063]
[1742001780067,21.08220047,133.71,133.7,0.063]
[1742001781790,13.31907733,133.71,133.7,0.063]
[1742001784078,20.79787733,133.71,133.7,0.063]
[1742001784682,13.31907733,133.71,133.7,0.063]
[1742001785503,0.28432314,133.66,133.62,0.03]
[1742001785678,13.31907733,133.63,133.62,0.03]
[1742001786566,74.07868665,133.63,133.62,0.03]
[1742001787373,20.80237733,133.63,133.62,0.03]
[1742001790798,13.31907733,133.63,133.62,0.03]
[1742001791310,20.80237733,133.63,133.62,0.03]
[1742001794674,0.14216157,133.64,133.62,0.03]
[1742001794879,13.31907733,133.63,133.62,0.03]
[1742001795696,13.4612389,133.63,133.62,0.03]
[1742001796577,74.22084822,133.63,133.62,0.03]
[1742001800179,74.36300979,133.63,133.62,0.03]
[1742001800385,74.86300979,133.63,133.62,0.03]
[1742001801504,0.14216157,133.62,133.61,0.063]
[1742001801796,13.4612389,133.62,133.61,0.063]
[1742001803602,20.9451389,133.62,133.61,0.063]
[1742001806280,20.80297733,133.62,133.61,0.063]
[1742001806482,13.31907733,133.62,133.61,0.063]
[1742001810598,13.31907733,133.63,133.61,0.063]
[1742001811037,13.31907733,133.64,133.61,0.063]
[1742001811505,13.31907733,133.63,133.61,0.063]
[1742001811698,13.31907733,133.62,133.61,0.063]
[1742001812213,13.31907733,133.63,133.61,0.063]
[1742001820998,13.38207733,133.64,133.61,0.063]
[1742001825418,13.31907733,133.63,133.61,0.063]
[1742001825600,13.31907733,133.62,133.61,0.063]
[1742001827631,20.9451389,133.62,133.61,0.063]
[1742001828435,0.14216157,133.61,133.58,0.03]
[1742001828734,13.4612389,133.59,133.58,0.03]
[1742001829305,13.60340047,133.59,133.58,0.03]
[1742001829516,21.08890047,133.59,133.58,0.03]
[1742001831130,13.4612389,133.59,133.58,0.03]
[1742001831502,13.31907733,133.59,133.58,0.03]
[1742001835736,7.4851,133.6,133.58,0.03]
[1742001836135,13.31907733,133.59,133.58,0.03]
[1742001839923,20.80417733,133.6,133.58,0.03]
[1742001840131,13.31907733,133.59,133.58,0.03]
[1742001842668,20.80457733,133.59,133.58,0.03]
[1742001844069,13.31907733,133.59,133.58,0.03]
[1742001845270,20.80457733,133.59,133.58,0.03]
[1742001845774,20.9467389,133.59,133.58,0.03]
[1742001846944,22.61540047,133.59,133.58,0.03]
[1742001847767,22.4732389,133.59,133.58,0.03]
[1742001847943,13.31907733,133.59,133.58,0.03]
[1742001852106,20.80457733,133.59,133.58,0.03]
[1742001853899,20.9467389,133.59,133.58,0.03]
[1742001855792,21.08890047,133.59,133.58,0.03]
[1742001858582,39.73854933,133.59,133.58,0.03]
[1742001858782,40.23854933,133.59,133.58,0.03]
[1742001859004,41.74074933,133.59,133.58,0.03]
[1742001859387,48.28074933,133.59,133.58,0.03]
[1742001859977,7.9855,133.59,133.58,0.03]
[1742001860277,18.7111,133.61,133.58,0.03]
[1742001860278,7.4844,133.61,133.58,0.03]
[1742001860477,13.31907733,133.6,133.58,0.03]
[1742001861475,13.31907733,133.61,133.58,0.03]
[1742001862495,13.38207733,133.62,133.58,0.03]
[1742001862903,13.31907733,133.61,133.58,0.03]
[1742001865604,13.31907733,133.6,133.58,0.03]
[1742001867285,13.31907733,133.61,133.58,0.03]
[1742001869710,13.38207733,133.62,133.58,0.03]
[1742001869886,0.063,133.62,133.58,0.03]
[1742001872011,0.063,133.62,133.58,7.5161]
[1742001873105,13.38207733,133.62,133.58,7.5161]
[1742001875796,0.063,133.62,133.58,7.5161]
[1742001876394,0.063,133.62,133.59,6.54]
[1742001877489,0.063,133.62,133.6,7.485]
[1742001891622,0.063,133.62,133.59,87.2399]
[1742001891623,13.38207733,133.62,133.59,80.6999]
[1742001893530,20.86597733,133.62,133.59,80.6999]
[1742001893831,20.86597733,133.62,133.58,0.03]
[1742001894133,0.063,133.62,133.58,7.516]
[1742001898619,0.063,133.62,133.58,0.03]
[1742001904725,0.063,133.62,133.59,7.4855]
[1742001911443,0.063,133.62,133.59,88.1854]
[1742001914728,0.063,133.62,133.6,18.64964886]
[1742001914935,0.063,133.62,133.61,7.4844]
[1742001916848,0.063,133.62,133.61,26.13404886]
[1742001917351,0.063,133.62,133.61,26.418372]
[1742001917550,0.063,133.62,133.61,107.118272]
[1742001917927,0.063,133.62,133.61,108.772772]
[1742001921857,0.063,133.62,133.61,110.772772]
[1742001923134,0.063,133.62,133.61,108.83394886]
[1742001924159,0.063,133.62,133.61,90.1843]
[1742001924464,0.063,133.62,133.61,90.2143]
[1742001925446,0.063,133.62,133.61,108.86394886]
[1742001926260,0.063,133.62,133.61,109.148272]
[1742001926763,0.063,133.62,133.61,109.00611043]
[1742001929772,0.063,133.62,133.61,109.148272]
[1742001936059,0.063,133.62,133.61,90.2143]
[1742001936265,0.063,133.62,133.61,2.03]
[1742001948967,13.38207733,133.62,133.61,2.03]
[1742001949168,20.86597733,133.62,133.61,2.03]
[1742001952090,13.38207733,133.62,133.61,2.03]
[1742001952591,20.86597733,133.62,133.61,2.03]
[1742001958195,21.0081389,133.62,133.61,2.03]
[1742001958379,27.53340047,133.62,133.61,2.03]
[1742001958896,27.53340047,133.62,133.58,0.03]
[1742001958897,46.18304933,133.62,133.58,0.03]
[1742001959088,33.31907733,133.59,133.58,0.03]
[1742001959394,0.063,133.64,133.62,18.64964886]
[1742001959599,0.063,133.64,133.63,32.67294886]
[1742001959898,0.063,133.64,133.63,14.0233]
[1742001960980,0.063,133.64,133.63,6.54]
[1742001961402,0.063,133.64,133.63,14.0233]
[1742001961803,0.063,133.64,133.63,14.30762314]
[1742001962082,0.063,133.64,133.63,14.0233]
[1742001962287,0.063,133.64,133.63,14.30762314]
[1742001962784,7.9137,133.7,133.64,18.64964886]
[1742001963604,7.9137,133.7,133.65,7.4822]
[1742001964403,0.063,133.72,133.66,18.933972]
[1742001964587,0.063,133.72,133.66,100.75553835]
[1742001965304,0.063,133.72,133.68,18.933972]
[1742001965617,20.86487733,133.78,133.71,7.4788]
[1742001966289,13.31907733,133.77,133.71,7.4788]
[1742001966602,7.5458,133.78,133.71,7.4788]
[1742001966603,13.31907733,133.76,133.71,7.4788]
[1742001967313,13.31907733,133.76,133.69,6.56]
[1742001967314,13.31907733,133.75,133.69,14.0397]
[1742001969213,13.31907733,133.76,133.69,14.0397]
[1742001969518,20.86487733,133.78,133.7,18.933972]
[1742001969818,20.86487733,133.78,133.7,99.633872]
[1742001970014,20.86487733,133.78,133.71,7.4788]
[1742001970321,13.31907733,133.78,133.71,88.1787]
[1742001970498,13.31907733,133.78,133.72,18.64964886]
[1742001971721,13.31907733,133.77,133.72,18.64964886]
[1742001972103,13.31907733,133.77,133.71,80.6999]
[1742001973322,20.79457733,133.77,133.71,80.6999]
[1742001973498,13.31907733,133.75,133.71,80.6999]
[1742001974520,13.31907733,133.74,133.71,87.2399]
[1742001974813,13.31907733,133.74,133.7,6.54]
[1742001976816,13.31907733,133.72,133.69,6.54]
[1742001977023,13.31907733,133.72,133.66,88.1812]
[1742001977222,13.31907733,133.72,133.68,6.54]
[1742001977632,13.31907733,133.69,133.65,1.5466]
[1742001977798,6.88416157,133.75,133.66,6.54]
[1742001977799,13.31907733,133.67,133.66,6.54]
[1742001978124,13.31907733,133.67,133.64,6.54]
[1742001978421,13.31907733,133.66,133.64,6.54]
[1742001978621,20.80077733,133.66,133.63,0.03]
[1742001978806,13.31907733,133.65,133.63,0.03]
[1742001979011,13.31907733,133.64,133.63,0.03]
[1742001980308,20.90454807,133.64,133.63,0.03]
[1742001980508,20.90454807,133.65,133.63,0.03]
[1742001981519,6.38416157,133.69,133.63,0.03]
[1742001981520,6.242,133.69,133.63,0.03]
[1742001981703,20.90454807,133.68,133.63,80.7299]
[1742001982720,20.90454807,133.69,133.63,80.7299]
[1742001982907,20.90454807,133.69,133.64,7.4827]
[1742001986929,20.90454807,133.7,133.64,26.1896]
[1742001987532,20.90454807,133.7,133.64,106.8895]
[1742001988221,20.90454807,133.69,133.64,106.8895]
[1742001988430,20.90454807,133.7,133.65,18.64964886]
[1742001988635,20.90454807,133.71,133.66,6.54]
[1742001989525,20.90454807,133.71,133.67,7.4811]
[1742001991936,1.6543,133.74,133.67,7.4811]
[1742001992143,20.90454807,133.74,133.67,7.4811]
[1742001993836,20.90454807,133.74,133.67,26.1838]
[1742001996239,20.90454807,133.73,133.67,26.1838]
[1742001996542,20.90454807,133.73,133.67,106.8837]
[1742001997646,20.90454807,133.72,133.67,106.8837]
[1742001998141,20.90454807,133.72,133.67,88.181]
[1742001998337,20.90454807,133.72,133.67,90.181]
[1742001998542,20.90454807,133.73,133.67,90.181]
[1742002000831,20.90454807,133.72,133.67,90.181]
[1742002001226,20.90454807,133.7,133.67,90.1809]
[1742002001526,20.90454807,133.7,133.67,9.481]
[1742002002251,13.3654999,133.7,133.67,9.481]
[1742002005162,13.3654999,133.71,133.67,9.481]
[1742002006266,13.3654999,133.71,133.68,6.54]
[1742002010177,13.3654999,133.71,133.68,14.0205]
[1742002011550,13.3654999,133.71,133.68,6.57]
[1742002011951,13.3654999,133.7,133.68,6.57]
[1742002014180,13.3654999,133.71,133.68,6.57]
[1742002017387,20.8443999,133.71,133.68,6.57]